bitfinex-derivatives/quotes_BTCF0:USTF0_20250608
["timestamp","ask_amount","ask_price","bid_price","bid_amount"]
[1749420228409,1.6440705,106100.0,106090.0,0.54720162]
[1749420228999,1.6440705,106100.0,106090.0,0.73542822]
[1749420229200,1.6440705,106100.0,106090.0,0.73562822]
[1749420233101,1.48915613,106100.0,106090.0,0.73562822]
[1749420233299,1.6440705,106100.0,106090.0,0.73562822]
[1749420234202,1.62876558,106100.0,106090.0,0.73562822]
[1749420235003,1.62876558,106100.0,106090.0,0.73542822]
[1749420235201,1.62876558,106100.0,106090.0,0.73562822]
[1749420236405,1.62876558,106100.0,106090.0,0.73542832]
[1749420236600,1.62876558,106100.0,106090.0,0.73562832]
[1749420237206,1.62876558,106100.0,106090.0,0.35339039]
[1749420239302,1.62876558,106100.0,106090.0,0.54720162]
[1749420239507,1.62876558,106100.0,106090.0,0.73562822]
[1749420239704,1.62876558,106100.0,106090.0,0.54720162]
[1749420239910,1.62876558,106100.0,106090.0,0.84103039]
[1749420240103,1.62876558,106100.0,106090.0,0.84123039]
[1749420240298,1.62876558,106100.0,106090.0,0.45899246]
[1749420241511,1.47385121,106100.0,106090.0,0.45899246]
[1749420241702,1.62876558,106100.0,106090.0,0.45899246]
[1749420242105,1.62512558,106100.0,106090.0,0.64741906]
[1749420243112,1.47021121,106100.0,106090.0,0.64741906]
[1749420243312,1.62512558,106100.0,106090.0,0.64741906]
[1749420247614,1.07472558,106100.0,106090.0,0.64741906]
[1749420247819,1.62488558,106100.0,106090.0,0.64741906]
[1749420249825,1.46997121,106100.0,106090.0,0.64741906]
[1749420250025,1.62488558,106100.0,106090.0,0.64741906]
[1749420251425,1.83077121,106100.0,106090.0,0.64741906]
[1749420251624,1.98568558,106100.0,106090.0,0.64741906]
[1749420252326,1.98608558,106100.0,106090.0,0.64741906]
[1749420256927,1.83117121,106100.0,106090.0,0.64741906]
[1749420257127,1.98608558,106100.0,106090.0,0.64741906]
[1749420257328,1.98608558,106100.0,106090.0,0.39109029]
[1749420258232,1.98556558,106100.0,106090.0,0.39109029]
[1749420258434,0.72170723,106100.0,106090.0,0.39109029]
[1749420258624,0.10706723,106100.0,106090.0,0.96169029]
[1749420258935,0.87420818,106110.0,106100.0,0.1884089]
[1749420259124,0.98124818,106110.0,106100.0,0.5659089]
[1749420259322,0.77443365,106110.0,106100.0,0.5659089]
[1749420259534,1.68551365,106110.0,106100.0,0.66016404]
[1749420260033,1.13555132,106110.0,106100.0,0.66016404]
[1749420260234,1.68587132,106110.0,106100.0,0.66036404]
[1749420261127,1.69087132,106110.0,106100.0,0.66036404]
[1749420262135,0.95216022,106110.0,106100.0,0.66036404]
[1749420262433,0.98676585,106110.0,106100.0,1.12836864]
[1749420262632,1.69107132,106110.0,106100.0,1.12836864]
[1749420262835,2.24577132,106110.0,106100.0,1.50973075]
[1749420263034,2.24577132,106110.0,106100.0,1.53858075]
[1749420263235,2.24577132,106110.0,106100.0,1.53878075]
[1749420264037,1.69525132,106110.0,106100.0,1.07077615]
[1749420264334,2.24593132,106110.0,106100.0,1.07077615]
[1749420264833,2.24593132,106110.0,106100.0,1.07057615]
[1749420265135,2.24593132,106110.0,106100.0,1.07077615]
[1749420265535,1.34792585,106110.0,106100.0,1.07077615]
[1749420265730,1.69123132,106110.0,106100.0,1.07077615]
[1749420266624,0.79724585,106110.0,106100.0,1.07077615]
[1749420266824,0.98796585,106110.0,106100.0,1.07077615]
[1749420267029,1.69207132,106110.0,106100.0,1.07077615]
[1749420267335,1.33147132,106110.0,106100.0,0.88847615]
[1749420267532,2.24257132,106110.0,106100.0,0.69327615]
[1749420268024,2.24257132,106110.0,106100.0,0.31151404]
[1749420268436,2.24257132,106110.0,106100.0,0.41639567]
[1749420268832,2.24257132,106110.0,106100.0,0.41659567]
[1749420269034,2.24257132,106110.0,106100.0,0.41639567]
[1749420269234,2.24257132,106110.0,106100.0,0.41659567]
[1749420269435,2.24257132,106110.0,106100.0,0.41639567]
[1749420269633,2.24257132,106110.0,106100.0,0.41659567]
[1749420269941,2.08765695,106110.0,106100.0,0.60500447]
[1749420270242,2.24257132,106110.0,106100.0,0.60500447]
[1749420271041,2.24257132,106110.0,106100.0,0.41659567]
[1749420271232,2.24257132,106110.0,106100.0,0.60500447]
[1749420272640,2.24257132,106110.0,106100.0,0.41659567]
[1749420273232,2.24257132,106110.0,106100.0,0.12330514]
[1749420273431,2.24257132,106110.0,106100.0,0.12310514]
[1749420273635,0.1884088,106100.0,106090.0,0.37338068]
[1749420273938,1.07232317,106100.0,106090.0,0.17433641]
[1749420274241,1.07232317,106100.0,106090.0,0.17453641]
[1749420274537,1.07232317,106100.0,106090.0,0.17048763]
[1749420274936,1.07332317,106100.0,106090.0,0.17048763]
[1749420276237,1.07432317,106100.0,106090.0,0.17048763]
[1749420278341,1.07432317,106100.0,106090.0,0.35891423]
[1749420278842,1.07432317,106100.0,106090.0,0.17048763]
[1749420284749,0.71352317,106100.0,106090.0,0.17048763]
[1749420285047,1.43512317,106100.0,106090.0,0.17048763]
[1749420287049,1.98764317,106100.0,106090.0,0.17048763]
[1749420287249,1.43512317,106100.0,106090.0,0.17048763]
[1749420287452,1.98760317,106100.0,106090.0,0.17048763]
[1749420288657,1.98740317,106100.0,106090.0,0.17048763]
[1749420289255,0.1884266,106090.0,106080.0,0.36946132]
[1749420289455,1.26884097,106090.0,106080.0,0.36946132]
[1749420289755,1.26884097,106090.0,106080.0,0.46392535]
[1749420290158,1.42375534,106090.0,106080.0,0.46392535]
[1749420290357,1.42375534,106090.0,106080.0,0.46372535]
[1749420290556,1.42375534,106090.0,106080.0,0.17043482]
[1749420290745,1.26884097,106090.0,106080.0,0.17043482]
[1749420291145,1.42375534,106090.0,106080.0,0.17063482]
[1749420291351,0.1884444,106080.0,106070.0,0.00010331]
[1749420291551,1.79247314,106080.0,106070.0,0.00010331]
[1749420291951,1.79247314,106080.0,106070.0,0.38766676]
[1749420292256,1.79247314,106080.0,106070.0,0.38786676]
[1749420292447,1.79247314,106080.0,106070.0,0.38766676]
[1749420292757,1.79247314,106080.0,106070.0,0.09657623]
[1749420292959,1.79247314,106080.0,106070.0,0.09837623]
[1749420293157,1.79247314,106080.0,106070.0,0.09857623]
[1749420293158,1.4826444,106080.0,106070.0,0.09857623]
[1749420293460,1.79247314,106080.0,106070.0,0.09857623]
[1749420295862,1.79247314,106080.0,106070.0,0.09837623]
[1749420296064,1.79247314,106080.0,106070.0,0.09857623]
[1749420297362,1.79247314,106080.0,106070.0,0.09837623]
[1749420297562,1.79247314,106080.0,106070.0,0.09857623]
[1749420297968,1.79247314,106080.0,106070.0,0.09837623]
[1749420298166,1.79247314,106080.0,106070.0,0.09857623]
[1749420298858,1.79247314,106080.0,106070.0,0.11280443]
[1749420299153,1.4826444,106080.0,106070.0,0.09857623]
[1749420299463,1.79247314,106080.0,106070.0,0.11260985]
[1749420299663,1.79247314,106080.0,106070.0,0.11280985]
[1749420299856,1.1218444,106080.0,106070.0,0.11280985]
[1749420300052,2.15327314,106080.0,106070.0,0.11280985]
[1749420300552,2.15327314,106080.0,106070.0,0.09857623]
[1749420300953,0.1884796,106060.0,106050.0,0.67639053]
[1749420301163,2.02880354,106060.0,106050.0,0.86488793]
[1749420301358,2.02880354,106060.0,106050.0,1.24645004]
[1749420301559,2.02880354,106060.0,106050.0,1.38784296]
[1749420301854,1.42892917,106060.0,106050.0,1.09455243]
[1749420302060,1.5284396,106060.0,106050.0,1.2534668]
[1749420302363,1.5284396,106060.0,106050.0,1.09855243]
[1749420302565,1.5284396,106060.0,106050.0,1.10155243]
[1749420302754,1.5284396,106060.0,106050.0,1.09755243]
[1749420302958,0.9766796,106060.0,106050.0,1.11010167]
[1749420303264,1.5285596,106060.0,106050.0,1.11010167]
[1749420304565,1.5285596,106060.0,106050.0,1.18373756]
[1749420304769,0.9766796,106060.0,106050.0,1.18373756]
[1749420304966,0.9766796,106060.0,106050.0,1.18778634]
[1749420305266,1.5281996,106060.0,106050.0,1.18778634]
[1749420305565,1.5281196,106060.0,106050.0,1.18778634]
[1749420306264,0.9766796,106060.0,106050.0,1.18778634]
[1749420306960,1.5278796,106060.0,106050.0,1.18778634]
[1749420307364,0.9766796,106060.0,106050.0,1.18778634]
[1749420307760,1.5277596,106060.0,106050.0,0.9897397]
[1749420307956,2.04363397,106060.0,106050.0,0.9899397]
[1749420308361,2.04363397,106060.0,106050.0,0.9897397]
[1749420308561,2.04363397,106060.0,106050.0,0.9899397]
[1749420308762,2.04363397,106060.0,106050.0,0.60837759]
[1749420309364,2.04363397,106060.0,106050.0,0.60817759]
[1749420309565,2.24083397,106060.0,106050.0,0.90168002]
[1749420309864,1.33758718,106060.0,106050.0,0.90014213]
[1749420310166,1.33758718,106060.0,106050.0,1.47193953]
[1749420310167,1.88882718,106060.0,106050.0,1.47193953]
[1749420310360,1.88882718,106060.0,106050.0,1.1782371]
[1749420310666,1.88882718,106060.0,106050.0,1.18791619]
[1749420310864,1.88882718,106060.0,106050.0,0.80635408]
[1749420311068,1.33758718,106060.0,106050.0,1.09985651]
[1749420311269,1.88914718,106060.0,106050.0,1.09985651]
[1749420311660,1.87383664,106060.0,106050.0,0.80635408]
[1749420312264,1.87363664,106060.0,106050.0,0.80635408]
[1749420313261,1.32227664,106060.0,106050.0,0.80635408]
[1749420313466,1.87343664,106060.0,106050.0,0.80635408]
[1749420316069,2.02835101,106060.0,106050.0,0.80635408]
[1749420316567,2.02835101,106060.0,106050.0,0.75923408]
[1749420317667,2.02835101,106060.0,106050.0,0.17815759]
[1749420317870,1.86099101,106060.0,106050.0,0.17795759]
[1749420318167,2.41167101,106060.0,106050.0,0.17815759]
[1749420318568,2.41167101,106060.0,106050.0,0.17615759]
[1749420318767,2.41167101,106060.0,106050.0,0.46971179]
[1749420319572,2.41167101,106060.0,106050.0,0.46771179]
[1749420320074,2.41167101,106060.0,106050.0,0.17415759]
[1749420320273,2.41167101,106060.0,106050.0,0.36265499]
[1749420321372,2.41167101,106060.0,106050.0,0.7442171]
[1749420321670,2.39635949,106060.0,106050.0,0.7442171]
[1749420327273,2.42698155,106060.0,106050.0,0.7442171]
[1749420327973,1.70538155,106060.0,106050.0,0.7442171]
[1749420328172,2.42698155,106060.0,106050.0,0.7442171]
[1749420328365,2.42698155,106060.0,106050.0,0.7440171]
[1749420328570,2.42698155,106060.0,106050.0,0.36245499]
[1749420328770,2.42698155,106060.0,106050.0,0.36265499]
[1749420329075,2.42698155,106060.0,106050.0,0.17415759]
[1749420329276,2.42698155,106060.0,106050.0,0.36265499]
[1749420329476,2.27206718,106060.0,106050.0,0.6567817]
[1749420329675,2.42698155,106060.0,106050.0,0.6567817]
[1749420330379,2.42698155,106060.0,106050.0,0.4682843]
[1749420330970,2.42698155,106060.0,106050.0,0.17395759]
[1749420331170,2.42698155,106060.0,106050.0,0.17415759]
[1749420333574,2.42998155,106060.0,106050.0,0.17315759]
[1749420333781,2.42998155,106060.0,106050.0,0.17215759]
[1749420334079,2.43298155,106060.0,106050.0,0.17215759]
[1749420335775,2.43298155,106060.0,106050.0,0.4662843]
[1749420336874,2.43298155,106060.0,106050.0,0.4660843]
[1749420337080,2.43298155,106060.0,106050.0,0.17215759]
[1749420337471,2.43298155,106060.0,106050.0,0.17195759]
[1749420337675,2.43298155,106060.0,106050.0,0.17215759]
[1749420337881,1.88230155,106060.0,106050.0,0.36065509]
[1749420338082,2.27918718,106060.0,106050.0,0.36065509]
[1749420338280,1.34358718,106060.0,106050.0,0.36065509]
[1749420338486,1.89534718,106060.0,106050.0,0.36065509]
[1749420338675,1.89534718,106060.0,106050.0,0.74575509]
[1749420338875,1.34358718,106060.0,106050.0,0.74575509]
[1749420339080,1.89542718,106060.0,106050.0,0.74575509]
[1749420339578,1.89546718,106060.0,106050.0,0.74575509]
[1749420340288,1.34358718,106060.0,106050.0,0.74575509]
[1749420340489,1.89538718,106060.0,106050.0,0.74575509]
[1749420341487,1.34358718,106060.0,106050.0,0.74575509]
[1749420341683,1.89514718,106060.0,106050.0,0.74575509]
[1749420342188,2.03475152,106060.0,106050.0,1.42144391]
[1749420342383,1.48319152,106060.0,106050.0,1.42144391]
[1749420342589,2.03571152,106060.0,106050.0,1.42144391]
[1749420342791,1.32827715,106060.0,106050.0,1.1273172]
[1749420343090,1.88087715,106060.0,106050.0,1.1273172]
[1749420345796,1.88047715,106060.0,106050.0,1.1273172]
[1749420348500,2.03539152,106060.0,106050.0,1.1273172]
[1749420349101,1.88047715,106060.0,106050.0,1.1273172]
[1749420349303,2.03539152,106060.0,106050.0,1.1273172]
[1749420350301,1.88047715,106060.0,106050.0,1.1273172]
[1749420350698,0.36690758,106060.0,106050.0,1.28223157]
[1749420350904,0.5492484,106080.0,106070.0,0.1884619]
[1749420351096,1.5293284,106080.0,106070.0,0.1884619]
[1749420351403,0.9766884,106080.0,106070.0,0.5781619]
[1749420351701,1.5294841,106080.0,106070.0,1.0540147]
[1749420351902,1.3410801,106080.0,106070.0,1.0540147]
[1749420352197,0.7883201,106080.0,106070.0,1.0540147]
[1749420352403,1.3460001,106080.0,106070.0,1.50237459]
[1749420352603,1.3520001,106080.0,106070.0,1.12081248]
[1749420352902,1.5404442,106080.0,106070.0,1.12081248]
[1749420353102,1.5404442,106080.0,106070.0,0.82736696]
[1749420353504,0.7993201,106080.0,106070.0,0.82736696]
[1749420353695,0.9069601,106080.0,106070.0,0.82736696]
[1749420353901,1.3521601,106080.0,106070.0,0.82736696]
[1749420354404,1.33681372,106080.0,106070.0,0.82736696]
[1749420354597,1.33681372,106080.0,106070.0,1.20892907]
[1749420355007,1.33081372,106080.0,106070.0,1.20992907]
[1749420355503,1.32581372,106080.0,106070.0,1.21192907]
[1749420357706,0.77301372,106080.0,106070.0,1.21192907]
[1749420357902,1.32513372,106080.0,106070.0,1.21192907]
[1749420358101,1.32509372,106080.0,106070.0,1.21192907]
[1749420358303,1.51353792,106080.0,106070.0,1.21192907]
[1749420358993,1.51333792,106080.0,106070.0,1.21192907]
[1749420359699,1.51333792,106080.0,106070.0,1.34997858]
[1749420359900,1.1678443,106080.0,106070.0,0.96841647]
[1749420360100,1.5286443,106080.0,106070.0,0.96841647]
[1749420360399,1.3402001,106080.0,106070.0,0.67545259]
[1749420360694,1.5286443,106080.0,106070.0,0.67545259]
[1749420360899,1.5276443,106080.0,106070.0,0.67545259]
[1749420362206,1.5276443,106080.0,106070.0,0.96840742]
[1749420362807,1.5276443,106080.0,106070.0,0.96842238]
[1749420363406,1.3392001,106080.0,106070.0,0.96842238]
[1749420363706,1.3392001,106080.0,106070.0,1.12333675]
[1749420363903,1.3387201,106080.0,106070.0,1.12333675]
[1749420364908,1.3387201,106080.0,106070.0,0.83036696]
[1749420365910,1.3387201,106080.0,106070.0,0.83441574]
[1749420366814,0.7883201,106080.0,106070.0,0.83441574]
[1749420367014,1.3384001,106080.0,106070.0,0.83441574]
[1749420367610,1.3384001,106080.0,106070.0,1.12769312]
[1749420368212,1.3384001,106080.0,106070.0,0.83441574]
[1749420368411,1.3382001,106080.0,106070.0,0.83441574]
[1749420368706,0.4275201,106080.0,106070.0,1.58285702]
[1749420368909,0.51913372,106080.0,106070.0,2.02573702]
[1749420369114,0.50809668,106080.0,106070.0,2.27573702]
[1749420369316,0.50809668,106080.0,106070.0,2.12082265]
[1749420369611,0.50809668,106080.0,106070.0,1.98236774]
[1749420371215,0.50809668,106080.0,106070.0,1.73236774]
[1749420372218,0.1070001,106080.0,106070.0,1.98236774]
[1749420372419,0.1070001,106080.0,106070.0,2.08329604]
[1749420372812,8.01e-05,106080.0,106070.0,2.08329604]
[1749420373012,0.1070001,106080.0,106070.0,2.08329604]
[1749420373719,0.1070001,106080.0,106070.0,2.5524177]
[1749420374109,0.1070001,106080.0,106070.0,2.39750333]
[1749420374311,0.1070001,106080.0,106070.0,2.5524177]
[1749420375421,0.1070001,106080.0,106070.0,2.08329604]
[1749420377119,0.1070001,106080.0,106070.0,1.83329604]
[1749420377321,0.1070001,106080.0,106070.0,2.3024177]
[1749420378823,0.09169696,106080.0,106070.0,2.3024177]
[1749420379122,0.09169696,106080.0,106070.0,1.83329604]
[1749420379721,0.09169696,106080.0,106070.0,1.47249604]
[1749420379922,0.09169696,106080.0,106070.0,2.19409604]
[1749420380823,0.09169696,106080.0,106070.0,2.6632177]
[1749420382026,0.3826416,106090.0,106080.0,0.1884442]
[1749420382219,0.3826416,106090.0,106080.0,1.09575857]
[1749420382220,0.4895616,106090.0,106080.0,1.09575857]
[1749420382623,0.4895616,106090.0,106080.0,1.19003149]
[1749420383217,0.4905616,106090.0,106080.0,1.19003149]
[1749420384223,0.4915616,106090.0,106080.0,1.19003149]
[1749420384819,0.4895616,106090.0,106080.0,1.19103149]
[1749420385623,0.3826416,106090.0,106080.0,1.19103149]
[1749420385823,0.4895616,106090.0,106080.0,1.19103149]
[1749420386016,0.4895616,106090.0,106080.0,1.66015315]
[1749420387426,0.4895616,106090.0,106080.0,1.46275315]
[1749420388827,0.47425844,106090.0,106080.0,1.46275315]
[1749420389024,0.47425844,106090.0,106080.0,1.47381315]
[1749420391725,0.66268484,106090.0,106080.0,1.27961315]
[1749420391929,1.17839921,106090.0,106080.0,0.76389878]
[1749420392517,1.02348484,106090.0,106080.0,0.76389878]
[1749420392722,1.46544484,106090.0,106080.0,0.76389878]
[1749420393332,1.46544484,106090.0,106080.0,0.29377712]
[1749420393526,1.46644484,106090.0,106080.0,0.29377712]
[1749420393724,1.46744484,106090.0,106080.0,0.67554725]
[1749420395431,1.46744484,106090.0,106080.0,0.67959603]
[1749420395619,1.27901844,106090.0,106080.0,0.67959603]
[1749420395823,1.27901844,106090.0,106080.0,0.2978259]
[1749420396019,1.46744484,106090.0,106080.0,0.2978259]
[1749420396223,1.27901844,106090.0,106080.0,0.2978259]
[1749420397425,1.46744484,106090.0,106080.0,0.2978259]
[1749420397730,1.27901844,106090.0,106080.0,0.2978259]
[1749420398031,1.46744484,106090.0,106080.0,0.2978259]
[1749420398428,1.46744484,106090.0,106080.0,0.76694756]
[1749420398727,1.62235921,106090.0,106080.0,0.76694756]
[1749420398935,1.60705394,106090.0,106080.0,0.76694756]
[1749420401225,1.45213957,106090.0,106080.0,0.76694756]
[1749420405336,1.45213957,106090.0,106080.0,0.2978259]
[1749420406331,1.45213957,106090.0,106080.0,0.6798126]
[1749420407436,1.26371317,106090.0,106080.0,0.6798126]
[1749420407638,1.45213957,106090.0,106080.0,0.6798126]
[1749420408740,1.60705394,106090.0,106080.0,0.6798126]
[1749420409242,1.568379,106090.0,106080.0,0.79605203]
[1749420409641,1.55307379,106090.0,106080.0,0.79605203]
[1749420410538,1.55307379,106090.0,106080.0,0.41406533]
[1749420411238,1.55307379,106090.0,106080.0,0.79603574]
[1749420412141,1.55307379,106090.0,106080.0,0.41406533]
[1749420412839,1.55307379,106090.0,106080.0,0.79605783]
[1749420413943,1.55307379,106090.0,106080.0,0.41406533]
[1749420414241,1.55307379,106090.0,106080.0,0.79607633]
[1749420415044,1.55307379,106090.0,106080.0,0.6798369]
[1749420415245,1.55307379,106090.0,106080.0,0.79607633]
[1749420416245,1.43683446,106090.0,106080.0,0.79607633]
[1749420416446,1.55307389,106090.0,106080.0,0.79607633]
[1749420417244,1.55307389,106090.0,106080.0,0.41406533]
[1749420417742,1.61955389,106090.0,106080.0,0.41406533]
[1749420417944,1.98035389,106090.0,106080.0,0.41406533]
[1749420418140,1.98035389,106090.0,106080.0,0.44233533]
[1749420418345,1.98035389,106090.0,106080.0,0.82434633]
[1749420421445,1.98035389,106090.0,106080.0,0.44233533]
[1749420422440,1.97527389,106090.0,106080.0,0.44233533]
[1749420422747,0.77477492,106090.0,106080.0,0.94257476]
[1749420423049,0.77497492,106090.0,106080.0,0.94257476]
[1749420423247,1.31877492,106090.0,106080.0,0.94257476]
[1749420424439,1.31877492,106090.0,106080.0,0.94357476]
[1749420424744,1.30773792,106090.0,106080.0,1.41269642]
[1749420425244,0.76393792,106090.0,106080.0,1.41369642]
[1749420425449,0.50741792,106090.0,106080.0,1.41369642]
[1749420425651,0.50761792,106090.0,106080.0,1.41369642]
[1749420425846,0.40313792,106090.0,106080.0,1.41369642]
[1749420426147,0.94725792,106090.0,106080.0,1.41369642]
[1749420426550,0.94725792,106090.0,106080.0,0.94457476]
[1749420428349,0.94725792,106090.0,106080.0,0.62853533]
[1749420428350,1.25192385,106090.0,106080.0,0.62853533]
[1749420428548,1.82452385,106090.0,106080.0,0.9149342]
[1749420430050,1.82452385,106090.0,106080.0,0.9139342]
[1749420430254,1.82552385,106090.0,106080.0,0.44333533]
[1749420431150,1.82552385,106090.0,106080.0,0.44233533]
[1749420431351,1.70928442,106090.0,106080.0,0.3260959]
[1749420432654,1.69397963,106090.0,106080.0,0.3260959]
[1749420433656,1.69397963,106090.0,106080.0,0.79669477]
[1749420435357,1.69397963,106090.0,106080.0,0.3260959]
[1749420435859,1.68294252,106090.0,106080.0,0.3260959]
[1749420437160,1.68294252,106090.0,106080.0,0.79669477]
[1749420442661,1.49451602,106090.0,106080.0,0.79669477]
[1749420442857,0.93509122,106090.0,106080.0,0.95166465]
[1749420443060,1.27889122,106090.0,106080.0,1.33746465]
[1749420443764,0.73509122,106090.0,106080.0,1.33746465]
[1749420443965,1.27869122,106090.0,106080.0,1.33746465]
[1749420444157,1.27889122,106090.0,106080.0,1.33846465]
[1749420444666,1.27789122,106090.0,106080.0,1.33846465]
[1749420444864,1.27789122,106090.0,106080.0,1.33946465]
[1749420445863,1.27789122,106090.0,106080.0,0.86886578]
[1749420446962,1.46859122,106090.0,106080.0,0.86886578]
[1749420447469,1.46839122,106090.0,106080.0,0.86886578]
[1749420447669,1.27789122,106090.0,106080.0,0.86886578]
[1749420448169,0.73409122,106090.0,106080.0,0.86886578]
[1749420448466,1.27789122,106090.0,106080.0,0.86886578]
[1749420449667,1.46159122,106090.0,106080.0,0.86886578]
[1749420452865,1.44628674,106090.0,106080.0,0.86886578]
[1749420453271,1.44628674,106090.0,106080.0,0.83011204]
[1749420454471,1.44628674,106090.0,106080.0,1.30078436]
[1749420456775,1.1003,106090.0,106080.0,1.30078436]
[1749420457170,0.5565,106090.0,106080.0,1.30078436]
[1749420457368,1.10026,106090.0,106080.0,1.30078436]
[1749420458273,1.10026,106090.0,106080.0,0.83011204]
[1749420459672,1.10026,106090.0,106080.0,0.64211204]
[1749420459864,1.21647614,106090.0,106080.0,0.64211204]
[1749420460066,1.21647614,106090.0,106080.0,1.11281255]
[1749420461173,1.21647614,106090.0,106080.0,0.99659641]
[1749420461376,1.21647614,106090.0,106080.0,1.11281255]
[1749420461774,1.21647614,106090.0,106080.0,0.64211204]
[1749420461978,1.21647614,106090.0,106080.0,0.44431204]
[1749420462876,1.20117161,106090.0,106080.0,0.44431204]
[1749420463778,1.08495547,106090.0,106080.0,0.44431204]
[1749420466877,1.08495547,106090.0,106080.0,0.91503929]
[1749420467074,1.51219547,106090.0,106080.0,0.91503929]
[1749420473882,1.51219547,106090.0,106080.0,0.44431204]
[1749420475375,1.49689093,106090.0,106080.0,0.44431204]
[1749420475580,1.49689093,106090.0,106080.0,0.91503929]
[1749420475785,0.95313093,106090.0,106080.0,0.91503929]
[1749420476173,0.95313093,106090.0,106080.0,1.28913929]
[1749420476174,1.49681093,106090.0,106080.0,1.28913929]
[1749420476782,1.49681093,106090.0,106080.0,1.10613929]
[1749420480283,1.49681093,106090.0,106080.0,0.91503929]
[1749420480483,1.49681093,106090.0,106080.0,1.29762263]
[1749420480682,1.61302707,106090.0,106080.0,1.29762263]
[1749420480884,1.61302707,106090.0,106080.0,0.82689538]
[1749420481079,1.18578707,106090.0,106080.0,0.82689538]
[1749420484583,1.73501337,106090.0,106080.0,0.71067924]
[1749420485892,1.73601337,106090.0,106080.0,0.70967924]
[1749420487791,1.73601337,106090.0,106080.0,0.70867924]
[1749420488988,1.73601337,106090.0,106080.0,0.3260959]
[1749420489990,1.70967089,106090.0,106080.0,0.3260959]
[1749420491195,1.70967089,106090.0,106080.0,0.79682315]
[1749420492193,1.34887089,106090.0,106080.0,0.79682315]
[1749420492394,1.70967089,106090.0,106080.0,0.79682315]
[1749420499999,1.69436571,106090.0,106080.0,0.79682315]
[1749420500192,1.33356571,106090.0,106080.0,0.79682315]
[1749420500397,1.69436571,106090.0,106080.0,0.79682315]
[1749420503596,1.57814957,106090.0,106080.0,0.79682315]
[1749420503803,1.69436571,106090.0,106080.0,0.79682315]
[1749420504606,1.78862971,106090.0,106080.0,0.60837895]
[1749420504807,2.26791307,106090.0,106060.0,0.58388699]
[1749420505011,0.1885151,106040.0,106030.0,0.81744179]
[1749420505202,0.1885329,106030.0,106020.0,0.56897494]
[1749420505507,0.1885329,106030.0,106020.0,0.44354002]
[1749420505704,0.66554904,106030.0,106020.0,0.44374002]
[1749420505907,0.5493329,106030.0,106020.0,0.35646294]
[1749420506102,0.66554904,106030.0,106020.0,0.35666294]
[1749420506502,0.5493329,106030.0,106020.0,0.16791294]
[1749420506704,0.66554904,106030.0,106020.0,0.16811294]
[1749420506999,0.5493329,106030.0,106020.0,0.47287818]
[1749420507209,1.1228129,106030.0,106020.0,0.54396204]
[1749420507408,1.1228129,106030.0,106020.0,0.54576204]
[1749420507713,1.1228129,106030.0,106020.0,0.47439696]
[1749420508099,1.1228129,106030.0,106020.0,0.48853892]
[1749420508606,1.1228129,106030.0,106020.0,0.52625892]
[1749420508805,0.93412,106030.0,106020.0,0.62848031]
[1749420509011,0.4274216,106040.0,106030.0,0.1885319]
[1749420509314,1.1897358,106040.0,106030.0,1.14926651]
[1749420509507,0.4274216,106040.0,106030.0,1.26562966]
[1749420509703,0.4274216,106040.0,106030.0,1.35993814]
[1749420509904,0.5416216,106040.0,106030.0,1.35993814]
[1749420510500,0.5416216,106040.0,106030.0,1.23144038]
[1749420510714,0.5416216,106040.0,106030.0,1.34780373]
[1749420511412,0.5416216,106040.0,106030.0,1.36203436]
[1749420511609,0.5416216,106040.0,106030.0,1.36203417]
[1749420511815,0.2416216,106040.0,106030.0,1.80796373]
[1749420512015,0.6486386,106060.0,106050.0,0.1884964]
[1749420512217,0.7628386,106060.0,106050.0,0.3190895]
[1749420512610,0.7628386,106060.0,106050.0,0.57965044]
[1749420512810,0.7628386,106060.0,106050.0,0.46328709]
[1749420513010,0.7628386,106060.0,106050.0,0.47751677]
[1749420513413,0.7648386,106060.0,106050.0,0.47751677]
[1749420513923,0.7648386,106060.0,106050.0,0.47751097]
[1749420514118,0.7668386,106060.0,106050.0,0.57965044]
[1749420515118,0.7668386,106060.0,106050.0,0.96299922]
[1749420516612,0.0001416,106070.0,106050.0,1.46231752]
[1749420516810,0.5427,106090.0,106080.0,0.1884431]
[1749420517016,0.1142,106090.0,106080.0,0.30480645]
[1749420517218,0.1142,106090.0,106080.0,0.87680645]
[1749420517419,0.1142,106090.0,106080.0,0.85470713]
[1749420517613,1.3816185,106100.0,106090.0,0.1884253]
[1749420517817,1.4958185,106100.0,106090.0,0.1884253]
[1749420518012,0.9218185,106100.0,106090.0,0.1884253]
[1749420518219,1.4961785,106100.0,106090.0,0.28268933]
[1749420518824,1.4961785,106100.0,106090.0,0.35770298]
[1749420519915,1.30776,106100.0,106090.0,0.35770298]
[1749420520125,1.4971676,106100.0,106090.0,0.35770298]
[1749420521320,1.4971676,106100.0,106090.0,0.36698043]
[1749420521821,1.6784676,106100.0,106090.0,0.36698043]
[1749420525924,1.3176676,106100.0,106090.0,0.36698043]
[1749420526129,1.6784676,106100.0,106090.0,0.36698043]
[1749420526533,1.3176676,106100.0,106090.0,0.36698043]
[1749420526733,1.6784676,106100.0,106090.0,0.36698043]
[1749420527329,1.6784676,106100.0,106090.0,0.35770298]
[1749420527626,1.88908695,106100.0,106090.0,0.16927768]
[1749420528931,2.13908695,106100.0,106090.0,0.16927768]
[1749420529130,1.88908695,106100.0,106090.0,0.16927768]
[1749420531439,1.88908695,106100.0,106090.0,0.17332646]
[1749420537642,2.24988695,106100.0,106090.0,0.17332646]
[1749420538635,2.15563095,106100.0,106090.0,0.17332646]
[1749420538840,2.24988695,106100.0,106090.0,0.17332646]
[1749420540345,2.1335236,106100.0,106090.0,0.17332646]
[1749420540542,2.24988695,106100.0,106090.0,0.17332646]
[1749420541845,2.24988695,106100.0,106090.0,0.21102646]
[1749420544743,2.15563095,106100.0,106090.0,0.21102646]
[1749420545344,2.24988695,106100.0,106090.0,0.21102646]
[1749420547647,2.1335236,106100.0,106090.0,0.21102646]
[1749420547852,2.24988695,106100.0,106090.0,0.21102646]
[1749420551051,2.1778427,106100.0,106080.0,0.0001416]
[1749420551256,0.1884612,106070.0,106060.0,0.405599]
[1749420551449,1.66874455,106070.0,106060.0,0.377179]
[1749420551650,1.7368812,106070.0,106060.0,0.47143859]
[1749420551849,1.85324455,106070.0,106060.0,0.47143859]
[1749420552058,1.7368812,106070.0,106060.0,0.47143859]
[1749420552357,1.85324455,106070.0,106060.0,0.47143859]
[1749420552852,2.05384455,106070.0,106060.0,0.47143859]
[1749420553156,2.05484455,106070.0,106060.0,0.28295959]
[1749420553352,2.05484455,106070.0,106060.0,0.47143859]
[1749420553550,2.05484455,106070.0,106060.0,0.85493859]
[1749420555456,2.05484455,106070.0,106060.0,0.9292836]
[1749420555844,0.9786212,106070.0,106060.0,0.9292836]
[1749420556150,0.6178212,106070.0,106060.0,1.04564695]
[1749420556350,1.1927412,106070.0,106060.0,1.04564695]
[1749420556542,0.6178212,106070.0,106060.0,1.04564695]
[1749420556745,1.1925812,106070.0,106060.0,1.04564695]
[1749420557549,1.1925812,106070.0,106060.0,0.9292836]
[1749420558056,1.30894455,106070.0,106060.0,0.9292836]
[1749420558352,1.66974455,106070.0,106060.0,0.9292836]
[1749420558956,1.66974455,106070.0,106060.0,0.7408046]